[Event "Turkish Second League 2019"]
[Site "Konya"]
[Date "2019.07.22"]
[Round "1"]
[White "Arslan, Erdal"]
[Black "Baltag, Iulian"]
[Result "0-1"]
[ECO "B21"]
[WhiteElo "1964"]
[BlackElo "2398"]
[Annotator "NA"]
[PlyCount "72"]
[EventDate "2019.07.22"]
[EventType "team-tourn"]
[EventCountry "TUR"]
[SourceTitle "playchess.com"]
[Source "ChessBase"]
[SourceQuality "1"]
[TimeControl "5400+30"]

1. e4 {[%emt 0:00:30]} c5 {[%emt 0:00:30]} 2. d4 {[%emt 0:00:00]} cxd4 {[%emt 0:01:30]} 3. c3 {[%emt 0:00:00]} dxc3 {[%emt 0:00:00]} 4. Nxc3 {[%emt 0:00:30]} Nc6 {[%emt 0:00:00]} 5. Nf3 {[%emt 0:00:00]} d6 {[%emt 0:00:30]} 6. Bc4 {[%emt 0:00:00]} a6 {[%emt 0:00:30]} 7. O-O {[%emt 0:00:30]} Nf6 {[%emt 0:00:30]} 8. Qe2 {[%emt 0:02:30]} Bg4 {[%emt 0:00:30]} 9. Rd1 {[%emt 0:05:30]} e6 {[%emt 0:04:30]} 10. Bf4 {[%emt 0:10:30]} Qb8 {[%emt 0:01:30]} 11. h3 {[%emt 0:11:30]} Bxf3 {[%emt 0:04:30]} 12. Qxf3 {[%emt 0:00:30]} Be7 {[%emt 0:00:00]} 13. g4 {[%emt 0:01:30]} O-O {[%emt 0:00:00]} 14. Bb3 {[%emt 0:03:30]} Nd7 {[%emt 0:01:30]} 15. Qg3 {[%emt 0:02:30]} Nde5 {[%emt 0:00:30]} 16. Rac1 {[%emt 0:04:30]} Na5 {[%emt 0:01:30]} 17. Bxe5 {[%emt 0:00:30]} dxe5 {[%emt 0:00:00]} 18. Rd7 {[%emt 0:05:30]} Bg5 {[%emt 0:01:00]} 19. Rcd1 {[%emt 0:05:30]} b5 {[%emt 0:00:30]} 20. Ne2 {[%emt 0:06:30]} Nc4 {[%emt 0:09:30]} 21. h4 {[%emt 0:05:30]} Bf4 {[%emt 0:04:30]} 22. Qc3 {[%emt 0:02:30]} Qb6 {[%emt 0:00:30]} 23. Nxf4 {[%emt 0:02:30]} exf4 {[%emt 0:00:30]} 24. Bxc4 {[%emt 0:01:30]} bxc4 {[%emt 0:00:30]} 25. R1d6 {[%emt 0:01:30]} Qb5 {[%emt 0:02:30]} 26. Rc7 {[%emt 0:14:37]} Rac8 {[%emt 0:02:30]} 27. Rdd7 {[%emt 0:00:14]} Rxc7 {[%emt 0:01:30]} 28. Rxc7 {[%emt 0:00:06]} Qa4 {[%emt 0:00:30]} 29. Kg2 {[%emt 0:03:20]} Qxa2 {[%emt 0:16:30]} 30. Rxc4 {[%emt 0:01:56]} h6 {[%emt 0:00:30]} 31. g5 {[%emt 0:03:53]} hxg5 {[%emt 0:01:30]} 32. hxg5 {[%emt 0:00:06]} Qb1 {[%emt 0:03:30]} 33. e5 {[%emt 0:02:48]} Qf5 {[%emt 0:00:30]} 34. Kf3 {[%emt 0:03:54]} Qxg5 {[%emt 0:00:30]} 35. Rxf4 {[%emt 0:00:10]} Rd8 {[%emt 0:01:30]} 36. Ke3 {[%emt 0:00:46]} Rd5 {[%emt 0:01:30]} 0-1

[Event "Turkish Second League 2019"]
[Site "Konya"]
[Date "2019.07.22"]
[Round "1"]
[White "Yigit, Ahmet Yasir"]
[Black "Seyit, Ersel"]
[Result "1-0"]
[ECO "C50"]
[WhiteElo "1962"]
[BlackElo "1735"]
[Annotator "NA"]
[PlyCount "63"]
[EventDate "2019.07.22"]
[EventType "team-tourn"]
[EventCountry "TUR"]
[SourceTitle "playchess.com"]
[Source "ChessBase"]
[SourceQuality "1"]
[TimeControl "5400+30"]

1. e4 {[%emt 0:00:30]} Nc6 {[%emt 0:00:30]} 2. d4 {[%emt 0:05:30]} e5 {[%emt 0:03:30]} 3. Nf3 {[%emt 0:03:30]} exd4 {[%emt 0:01:30]} 4. Bc4 {[%emt 0:00:30]} d6 {[%emt 0:01:30]} 5. Nxd4 {[%emt 0:01:30]} Nf6 {[%emt 0:00:30]} 6. Nc3 {[%emt 0:00:30]} Be7 {[%emt 0:00:30]} 7. O-O {[%emt 0:00:30]} O-O {[%emt 0:00:30]} 8. f4 {[%emt 0:03:30]} Re8 {[%emt 0:05:30]} 9. Nf3 {[%emt 0:13:30]} Bg4 {[%emt 0:05:30]} 10. h3 {[%emt 0:00:30]} Bxf3 {[%emt 0:00:30]} 11. Qxf3 {[%emt 0:00:30]} d5 {[%emt 0:07:30]} 12. exd5 {[%emt 0:06:30]} Nd4 {[%emt 0:01:30]} 13. Qd3 {[%emt 0:01:30]} Bc5 {[%emt 0:01:30]} 14. Kh1 {[%emt 0:00:30]} a6 {[%emt 0:01:30]} 15. a4 {[%emt 0:01:30]} b5 {[%emt 0:08:30]} 16. axb5 {[%emt 0:01:30]} axb5 {[%emt 0:00:00]} 17. Rxa8 {[%emt 0:00:30]} Qxa8 {[%emt 0:00:00]} 18. Nxb5 {[%emt 0:00:00]} Ne2 {[%emt 0:13:30]} 19. Nxc7 {[%emt 0:16:00]} Nh5 {[%emt 0:07:30]} 20. g4 {[%emt 0:05:30]} Nhxf4 {[%emt 0:23:37]} 21. Bxf4 {[%emt 0:01:30]} Nxf4 {[%emt 0:02:56]} 22. Qf3 {[%emt 0:00:30]} Qd8 {[%emt 0:07:55]} 23. Nxe8 {[%emt 0:00:30]} g5 {[%emt 0:00:25]} 24. Qe4 {[%emt 0:02:30]} Kf8 {[%emt 0:02:43]} 25. Bb5 {[%emt 0:02:30]} Qa5 {[%emt 0:01:04]} 26. c4 {[%emt 0:02:30]} Qd2 {[%emt 0:00:37]} 27. Nf6 {[%emt 0:02:30]} Bd6 {[%emt 0:02:01]} 28. Nxh7+ {[%emt 0:02:30]} Kg7 {[%emt 0:00:21]} 29. Nxg5 {[%emt 0:00:30]} Nxh3 {[%emt 0:00:46]} 30. Rxf7+ {[%emt 0:00:30]} Kh6 {[%emt 0:00:30]} 31. Qh7+ {[%emt 0:00:30]} Kxg5 {[%emt 0:00:30]} 32. Qh5# {[%emt 0:00:30]} 1-0

[Event "Turkish Second League 2019"]
[Site "Konya"]
[Date "2019.07.22"]
[Round "1"]
[White "Aksoy, Ayca"]
[Black "Eroltu, Ceylan"]
[Result "0-1"]
[ECO "D36"]
[WhiteElo "1914"]
[BlackElo "1313"]
[Annotator "NA"]
[PlyCount "102"]
[EventDate "2019.07.22"]
[EventType "team-tourn"]
[EventCountry "TUR"]
[SourceTitle "playchess.com"]
[Source "ChessBase"]
[SourceQuality "1"]
[TimeControl "5400+30"]

1. d4 {[%emt 0:00:30]} d5 {[%emt 0:00:30]} 2. Nf3 {[%emt 0:00:00]} Nf6 {[%emt 0:00:30]} 3. c4 {[%emt 0:00:00]} e6 {[%emt 0:00:00]} 4. Nc3 {[%emt 0:00:30]} Be7 {[%emt 0:00:00]} 5. Bg5 {[%emt 0:00:30]} O-O {[%emt 0:00:30]} 6. cxd5 {[%emt 0:00:30]} exd5 {[%emt 0:00:30]} 7. Qc2 {[%emt 0:00:00]} h6 {[%emt 0:01:30]} 8. Bh4 {[%emt 0:00:00]} c6 {[%emt 0:01:30]} 9. e3 {[%emt 0:00:30]} Nbd7 {[%emt 0:03:30]} 10. Bd3 {[%emt 0:00:00]} b6 {[%emt 0:10:30]} 11. O-O {[%emt 0:00:00]} Bb7 {[%emt 0:02:30]} 12. Rac1 {[%emt 0:04:30]} Rc8 {[%emt 0:00:30]} 13. Rfd1 {[%emt 0:03:30]} Re8 {[%emt 0:10:30]} 14. Qb1 {[%emt 0:05:30]} Nh5 {[%emt 0:15:30]} 15. Bxe7 {[%emt 0:03:30]} Qxe7 {[%emt 0:00:30]} 16. b4 {[%emt 0:00:30]} b5 {[%emt 0:03:30]} 17. Bf5 {[%emt 0:07:30]} Nhf6 {[%emt 0:05:30]} 18. Re1 {[%emt 0:10:30]} g6 {[%emt 0:08:30]} 19. Bh3 {[%emt 0:18:30]} Rcd8 {[%emt 0:06:30]} 20. Ne2 {[%emt 0:09:30]} Nb6 {[%emt 0:00:30]} 21. Ne5 {[%emt 0:04:30]} Nc4 {[%emt 0:02:30]} 22. f4 {[%emt 0:05:30]} Ne4 {[%emt 0:04:30]} 23. Ng3 {[%emt 0:13:41]} Nxg3 {[%emt 0:07:03]} 24. hxg3 {[%emt 0:01:17]} Qd6 {[%emt 0:02:18]} 25. Rcd1 {[%emt 0:06:51]} Bc8 {[%emt 0:03:47]} 26. Kh2 {[%emt 0:01:01]} Bb7 {[%emt 0:03:07]} 27. Re2 {[%emt 0:01:37]} Ra8 {[%emt 0:01:15]} 28. Rf1 {[%emt 0:02:32]} a5 {[%emt 0:01:09]} 29. bxa5 {[%emt 0:00:02]} Rxa5 {[%emt 0:00:26]} 30. Nxc4 {[%emt 0:01:42]} dxc4 {[%emt 0:00:30]} 31. f5 {[%emt 0:00:00]} g5 {[%emt 0:00:04]} 32. f6 {[%emt 0:00:25]} Ra3 {[%emt 0:01:06]} 33. Qc1 {[%emt 0:00:25]} Rd3 {[%emt 0:00:23]} 34. Bf5 {[%emt 0:00:53]} Rxd4 {[%emt 0:00:44]} 35. Ref2 {[%emt 0:00:32]} Rh4+ {[%emt 0:00:36]} 36. Bh3 {[%emt 0:00:30]} Rhe4 {[%emt 0:00:30]} 37. Rd1 {[%emt 0:00:17]} Qc5 {[%emt 0:01:15]} 38. Bd7 {[%emt 0:00:30]} Rf8 {[%emt 0:00:30]} 39. Rf3 {[%emt 0:00:39]} b4 {[%emt 0:02:38]} 40. Rh1 {[%emt 0:00:29]} Re5 {[%emt 0:01:56]} 41. Kg1 {[%emt 0:00:18]} Qd5 {[%emt 0:00:03]} 42. Bg4 {[%emt 0:00:39]} Rd8 {[%emt 0:00:53]} 43. Rf2 {[%emt 0:00:03]} Qe4 {[%emt 0:00:00]} 44. Bf3 {[%emt 0:01:23]} Qxe3 {[%emt 0:00:41]} 45. Qxc4 {[%emt 0:00:00]} Qe1+ {[%emt 0:00:43]} 46. Rf1 {[%emt 0:00:00]} Qe3+ {[%emt 0:00:02]} 47. Rf2 {[%emt 0:00:00]} Qe1+ {[%emt 0:00:44]} 48. Rf1 {[%emt 0:00:00]} Qe3+ {[%emt 0:00:15]} 49. Kh2 {[%emt 0:02:02]} Rd4 {[%emt 0:00:15]} 50. Qc2 {[%emt 0:00:29]} g4 {[%emt 0:00:26]} 51. Bxc6 {[%emt 0:01:06]} Rh5# {[%emt 0:00:07]} 0-1

[Event "Turkish Second League 2019"]
[Site "Konya"]
[Date "2019.07.22"]
[Round "1"]
[White "Abdimanoglu, Beste Basak"]
[Black "Turkkan, Ece"]
[Result "0-1"]
[ECO "E61"]
[WhiteElo "1898"]
[BlackElo "1556"]
[Annotator "NA"]
[PlyCount "62"]
[EventDate "2019.07.22"]
[EventType "team-tourn"]
[EventCountry "TUR"]
[SourceTitle "playchess.com"]
[Source "ChessBase"]
[SourceQuality "1"]
[TimeControl "5400+30"]

1. d4 {[%emt 0:00:30]} Nf6 {[%emt 0:00:30]} 2. c4 {[%emt 0:00:00]} g6 {[%emt 0:00:30]} 3. Nc3 {[%emt 0:00:00]} Bg7 {[%emt 0:00:00]} 4. Nf3 {[%emt 0:00:00]} d6 {[%emt 0:00:00]} 5. Bg5 {[%emt 0:00:00]} O-O {[%emt 0:00:00]} 6. e3 {[%emt 0:00:30]} Nbd7 {[%emt 0:04:00]} 7. Be2 {[%emt 0:00:00]} h6 {[%emt 0:04:30]} 8. Bh4 {[%emt 0:00:00]} Re8 {[%emt 0:05:30]} 9. Qc2 {[%emt 0:02:30]} g5 {[%emt 0:13:30]} 10. Bg3 {[%emt 0:00:30]} e5 {[%emt 0:00:30]} 11. O-O-O {[%emt 0:03:30]} exd4 {[%emt 0:14:30]} 12. exd4 {[%emt 0:07:30]} a6 {[%emt 0:01:30]} 13. Rhe1 {[%emt 0:12:30]} Nf8 {[%emt 0:12:30]} 14. h4 {[%emt 0:10:30]} g4 {[%emt 0:00:30]} 15. Nh2 {[%emt 0:08:30]} Bd7 {[%emt 0:03:30]} 16. Nf1 {[%emt 0:09:30]} Rb8 {[%emt 0:04:30]} 17. f3 {[%emt 0:10:30]} Qc8 {[%emt 0:02:30]} 18. Ne4 {[%emt 0:08:30]} b5 {[%emt 0:08:30]} 19. Nxf6+ {[%emt 0:04:34]} Bxf6 {[%emt 0:00:00]} 20. Qd2 {[%emt 0:06:31]} Bg7 {[%emt 0:00:00]} 21. Bf4 {[%emt 0:04:23]} h5 {[%emt 0:03:30]} 22. Bh6 {[%emt 0:01:20]} Qd8 {[%emt 0:04:28]} 23. Bxg7 {[%emt 0:05:34]} Kxg7 {[%emt 0:00:07]} 24. g3 {[%emt 0:02:28]} Qf6 {[%emt 0:01:54]} 25. fxg4 {[%emt 0:01:10]} Bxg4 {[%emt 0:00:30]} 26. Bxg4 {[%emt 0:00:30]} hxg4 {[%emt 0:00:26]} 27. Nh2 {[%emt 0:00:19]} Qg6 {[%emt 0:00:48]} 28. cxb5 {[%emt 0:00:31]} Rxe1 {[%emt 0:01:06]} 29. Rxe1 {[%emt 0:00:04]} Rxb5 {[%emt 0:00:00]} 30. Qf4 {[%emt 0:00:50]} Rb4 {[%emt 0:02:34]} 31. Qxg4 {[%emt 0:01:38]} Rc4+ {[%emt 0:00:10]} 0-1

[Event "Turkish Second League 2019"]
[Site "Konya"]
[Date "2019.07.22"]
[Round "1"]
[White "Sahutoglu, Mehmet Ibrahim"]
[Black "Kocacoglu, Ayhan"]
[Result "1-0"]
[ECO "D78"]
[WhiteElo "1898"]
[BlackElo "1792"]
[Annotator "NA"]
[PlyCount "88"]
[EventDate "2019.07.22"]
[EventType "team-tourn"]
[EventCountry "TUR"]
[SourceTitle "playchess.com"]
[Source "ChessBase"]
[SourceQuality "1"]
[TimeControl "5400+30"]

1. Nf3 {[%emt 0:00:30]} g6 {[%emt 0:00:30]} 2. d4 {[%emt 0:00:30]} Nf6 {[%emt 0:00:00]} 3. b3 {[%emt 0:00:30]} Bg7 {[%emt 0:00:00]} 4. Bb2 {[%emt 0:00:30]} O-O {[%emt 0:00:30]} 5. g3 {[%emt 0:00:00]} d5 {[%emt 0:00:30]} 6. Bg2 {[%emt 0:00:00]} Bf5 {[%emt 0:00:30]} 7. O-O {[%emt 0:00:30]} c6 {[%emt 0:02:30]} 8. Nbd2 {[%emt 0:00:30]} Nbd7 {[%emt 0:01:30]} 9. c4 {[%emt 0:03:30]} Nb6 {[%emt 0:06:30]} 10. Re1 {[%emt 0:03:30]} Ne4 {[%emt 0:04:30]} 11. c5 {[%emt 0:07:30]} Nd7 {[%emt 0:02:30]} 12. Qc1 {[%emt 0:07:30]} Re8 {[%emt 0:07:30]} 13. Nh4 {[%emt 0:04:30]} Ndf6 {[%emt 0:01:30]} 14. Nxf5 {[%emt 0:01:30]} gxf5 {[%emt 0:00:30]} 15. Nf1 {[%emt 0:07:30]} Nd7 {[%emt 0:01:30]} 16. f3 {[%emt 0:01:30]} Nef6 {[%emt 0:00:30]} 17. Qc2 {[%emt 0:00:00]} e6 {[%emt 0:00:30]} 18. b4 {[%emt 0:01:00]} Nf8 {[%emt 0:06:30]} 19. a4 {[%emt 0:02:30]} Ng6 {[%emt 0:04:30]} 20. e3 {[%emt 0:07:30]} Nd7 {[%emt 0:07:30]} 21. b5 {[%emt 0:01:30]} h5 {[%emt 0:03:30]} 22. Reb1 {[%emt 0:03:30]} h4 {[%emt 0:00:30]} 23. Bc3 {[%emt 0:00:30]} hxg3 {[%emt 0:01:30]} 24. hxg3 {[%emt 0:00:30]} Qf6 {[%emt 0:03:30]} 25. Ra3 {[%emt 0:04:30]} Rab8 {[%emt 0:12:30]} 26. Rab3 {[%emt 0:04:30]} e5 {[%emt 0:01:30]} 27. dxe5 {[%emt 0:05:30]} Qe7 {[%emt 0:04:30]} 28. f4 {[%emt 0:01:30]} Nxc5 {[%emt 0:08:13]} 29. Bb4 {[%emt 0:02:30]} b6 {[%emt 0:00:59]} 30. bxc6 {[%emt 0:00:30]} Qe6 {[%emt 0:01:47]} 31. Bxc5 {[%emt 0:00:30]} Qxc6 {[%emt 0:00:05]} 32. Rc3 {[%emt 0:02:30]} bxc5 {[%emt 0:00:25]} 33. Rxb8 {[%emt 0:01:30]} Rxb8 {[%emt 0:00:30]} 34. Rxc5 {[%emt 0:00:00]} Qa6 {[%emt 0:05:35]} 35. Bxd5 {[%emt 0:01:00]} Ne7 {[%emt 0:01:25]} 36. Bf3 {[%emt 0:01:30]} Rb4 {[%emt 0:01:56]} 37. a5 {[%emt 0:01:30]} Bf8 {[%emt 0:02:18]} 38. Be2 {[%emt 0:04:30]} Qb7 {[%emt 0:00:45]} 39. Rc7 {[%emt 0:01:50]} Qb8 {[%emt 0:00:58]} 40. Bf3 {[%emt 0:01:11]} Rb2 {[%emt 0:01:07]} 41. Qc5 {[%emt 0:01:03]} a6 {[%emt 0:01:53]} 42. Qa7 {[%emt 0:01:43]} Qd8 {[%emt 0:01:32]} 43. Qc5 {[%emt 0:04:54]} Rb5 {[%emt 0:00:29]} 44. Qd6 {[%emt 0:00:32]} Nc6 {[%emt 0:01:56]} 1-0

[Event "Turkish Second League 2019"]
[Site "Konya"]
[Date "2019.07.22"]
[Round "1"]
[White "Abdullahoglu, Diren Can"]
[Black "Okur, Kadir"]
[Result "1-0"]
[ECO "D55"]
[WhiteElo "1889"]
[BlackElo "1844"]
[Annotator "NA"]
[PlyCount "103"]
[EventDate "2019.07.22"]
[EventType "team-tourn"]
[EventCountry "TUR"]
[SourceTitle "playchess.com"]
[Source "ChessBase"]
[SourceQuality "1"]
[TimeControl "5400+30"]

1. d4 {[%emt 0:00:30]} d5 {[%emt 0:00:30]} 2. c4 {[%emt 0:00:00]} e6 {[%emt 0:00:30]} 3. Nf3 {[%emt 0:00:00]} Nf6 {[%emt 0:00:30]} 4. Bg5 {[%emt 0:01:30]} Be7 {[%emt 0:00:00]} 5. Nc3 {[%emt 0:00:30]} O-O {[%emt 0:00:00]} 6. e3 {[%emt 0:00:00]} Nbd7 {[%emt 0:01:30]} 7. Rc1 {[%emt 0:03:00]} b6 {[%emt 0:08:30]} 8. cxd5 {[%emt 0:03:30]} exd5 {[%emt 0:07:30]} 9. Bd3 {[%emt 0:00:30]} Bb7 {[%emt 0:00:00]} 10. O-O {[%emt 0:01:30]} Ne4 {[%emt 0:04:00]} 11. Bxe7 {[%emt 0:02:30]} Qxe7 {[%emt 0:00:30]} 12. Qe2 {[%emt 0:04:30]} a6 {[%emt 0:02:30]} 13. Rfd1 {[%emt 0:05:30]} f5 {[%emt 0:09:30]} 14. Bb1 {[%emt 0:06:30]} Rf6 {[%emt 0:11:30]} 15. Ne1 {[%emt 0:10:30]} Rh6 {[%emt 0:07:30]} 16. g3 {[%emt 0:16:30]} Ndf6 {[%emt 0:10:30]} 17. f3 {[%emt 0:04:30]} Nd6 {[%emt 0:03:30]} 18. Ng2 {[%emt 0:07:30]} Re8 {[%emt 0:03:30]} 19. Re1 {[%emt 0:04:30]} g5 {[%emt 0:03:30]} 20. Qd2 {[%emt 0:03:30]} Qf7 {[%emt 0:08:30]} 21. b3 {[%emt 0:08:31]} Qh5 {[%emt 0:01:10]} 22. Kf2 {[%emt 0:00:08]} Rf8 {[%emt 0:02:44]} 23. h4 {[%emt 0:03:48]} g4 {[%emt 0:02:50]} 24. f4 {[%emt 0:02:08]} b5 {[%emt 0:01:27]} 25. a3 {[%emt 0:01:01]} a5 {[%emt 0:01:29]} 26. b4 {[%emt 0:01:26]} a4 {[%emt 0:03:14]} 27. Re2 {[%emt 0:02:47]} Qf7 {[%emt 0:03:22]} 28. Ne1 {[%emt 0:00:54]} c6 {[%emt 0:01:35]} 29. Kg2 {[%emt 0:00:18]} Nh5 {[%emt 0:00:48]} 30. Nd3 {[%emt 0:01:05]} Nc4 {[%emt 0:00:15]} 31. Qa2 {[%emt 0:01:25]} Qe7 {[%emt 0:00:04]} 32. Rh1 {[%emt 0:01:13]} Re8 {[%emt 0:02:27]} 33. Ne5 {[%emt 0:00:42]} Qe6 {[%emt 0:00:22]} 34. Kf2 {[%emt 0:01:16]} Nf6 {[%emt 0:00:30]} 35. Bd3 {[%emt 0:00:48]} Nd7 {[%emt 0:00:28]} 36. Bxc4 {[%emt 0:00:39]} dxc4 {[%emt 0:00:30]} 37. Rd2 {[%emt 0:00:30]} Nf6 {[%emt 0:00:30]} 38. Qc2 {[%emt 0:00:56]} c5 {[%emt 0:00:31]} 39. d5 {[%emt 0:01:23]} Nxd5 {[%emt 0:00:28]} 40. Nxd5 {[%emt 0:00:46]} Bxd5 {[%emt 0:00:08]} 41. Rhd1 {[%emt 0:00:00]} Be4 {[%emt 0:00:43]} 42. Qc3 {[%emt 0:00:09]} cxb4 {[%emt 0:00:47]} 43. axb4 {[%emt 0:00:53]} Bd3 {[%emt 0:00:29]} 44. Qd4 {[%emt 0:00:46]} Be4 {[%emt 0:00:29]} 45. Qc5 {[%emt 0:01:05]} Qb6 {[%emt 0:00:38]} 46. Rd7 {[%emt 0:00:51]} Qxc5 {[%emt 0:00:46]} 47. bxc5 {[%emt 0:00:01]} b4 {[%emt 0:00:14]} 48. Ra7 {[%emt 0:00:20]} c3 {[%emt 0:00:25]} 49. Rdd7 {[%emt 0:00:23]} Rf6 {[%emt 0:00:35]} 50. Rg7+ {[%emt 0:00:19]} Kf8 {[%emt 0:00:21]} 51. Rxh7 {[%emt 0:00:12]} Kg8 {[%emt 0:00:38]} 52. Rag7+ {[%emt 0:00:23]} 1-0

[Event "Turkish Second League 2019"]
[Site "Konya"]
[Date "2019.07.22"]
[Round "1"]
[White "Dinke, Abdullah"]
[Black "Zor, Alber Kadir"]
[Result "0-1"]
[ECO "B42"]
[WhiteElo "1870"]
[BlackElo "2160"]
[Annotator "NA"]
[PlyCount "74"]
[EventDate "2019.07.22"]
[EventType "team-tourn"]
[EventCountry "TUR"]
[SourceTitle "playchess.com"]
[Source "ChessBase"]
[SourceQuality "1"]
[TimeControl "5400+30"]

1. e4 {[%emt 0:04:30]} c5 {[%emt 0:01:30]} 2. Nf3 {[%emt 0:00:30]} e6 {[%emt 0:01:30]} 3. d4 {[%emt 0:00:00]} cxd4 {[%emt 0:00:30]} 4. Nxd4 {[%emt 0:00:00]} a6 {[%emt 0:00:30]} 5. Bd3 {[%emt 0:00:30]} Ne7 {[%emt 0:00:30]} 6. c4 {[%emt 0:00:30]} Nbc6 {[%emt 0:00:30]} 7. Nc2 {[%emt 0:00:30]} g6 {[%emt 0:00:30]} 8. Bd2 {[%emt 0:00:00]} Bg7 {[%emt 0:05:30]} 9. Bc3 {[%emt 0:00:00]} O-O {[%emt 0:01:30]} 10. Bxg7 {[%emt 0:03:30]} Kxg7 {[%emt 0:03:30]} 11. Nc3 {[%emt 0:00:00]} d5 {[%emt 0:06:30]} 12. a4 {[%emt 0:10:00]} d4 {[%emt 0:12:30]} 13. Ne2 {[%emt 0:02:30]} a5 {[%emt 0:09:30]} 14. f4 {[%emt 0:04:30]} e5 {[%emt 0:01:30]} 15. O-O {[%emt 0:06:30]} Bg4 {[%emt 0:11:30]} 16. h3 {[%emt 0:00:30]} Bxe2 {[%emt 0:00:30]} 17. Qxe2 {[%emt 0:00:30]} exf4 {[%emt 0:00:30]} 18. e5 {[%emt 0:04:30]} f6 {[%emt 0:05:30]} 19. e6 {[%emt 0:18:30]} g5 {[%emt 0:07:30]} 20. h4 {[%emt 0:05:30]} Ng6 {[%emt 0:02:30]} 21. hxg5 {[%emt 0:06:30]} fxg5 {[%emt 0:01:30]} 22. Ra3 {[%emt 0:00:30]} Qe7 {[%emt 0:06:33]} 23. Rb3 {[%emt 0:04:30]} Rf6 {[%emt 0:03:38]} 24. Re1 {[%emt 0:01:30]} Nf8 {[%emt 0:01:55]} 25. Qg4 {[%emt 0:02:30]} Rxe6 {[%emt 0:02:08]} 26. Rxe6 {[%emt 0:03:30]} Nxe6 {[%emt 0:00:09]} 27. Bf5 {[%emt 0:01:30]} Nf8 {[%emt 0:03:11]} 28. Bc8 {[%emt 0:00:30]} Rb8 {[%emt 0:01:21]} 29. Rb5 {[%emt 0:00:30]} h6 {[%emt 0:00:46]} 30. Rd5 {[%emt 0:00:30]} d3 {[%emt 0:01:11]} 31. Na3 {[%emt 0:02:04]} Nb4 {[%emt 0:00:51]} 32. Bf5 {[%emt 0:04:11]} Nxd5 {[%emt 0:01:19]} 33. cxd5 {[%emt 0:00:30]} d2 {[%emt 0:00:50]} 34. Kh2 {[%emt 0:01:02]} Qe1 {[%emt 0:01:38]} 35. Bc2 {[%emt 0:00:28]} Qg3+ {[%emt 0:00:45]} 36. Qxg3 {[%emt 0:00:37]} fxg3+ {[%emt 0:00:30]} 37. Kxg3 {[%emt 0:00:00]} Rc8 {[%emt 0:00:00]} 0-1

[Event "Turkish Second League 2019"]
[Site "Konya"]
[Date "2019.07.22"]
[Round "1"]
[White "Aydogdu, Cagatay"]
[Black "Tutuncu, Ali"]
[Result "1-0"]
[ECO "B07"]
[WhiteElo "1845"]
[BlackElo "1783"]
[Annotator "NA"]
[PlyCount "77"]
[EventDate "2019.07.22"]
[EventType "team-tourn"]
[EventCountry "TUR"]
[SourceTitle "playchess.com"]
[Source "ChessBase"]
[SourceQuality "1"]
[TimeControl "5400+30"]

1. e4 {[%emt 0:00:30]} g6 {[%emt 0:00:30]} 2. d4 {[%emt 0:00:30]} Bg7 {[%emt 0:00:30]} 3. Nf3 {[%emt 0:00:00]} d6 {[%emt 0:00:00]} 4. h3 {[%emt 0:00:00]} Nf6 {[%emt 0:01:00]} 5. Bd3 {[%emt 0:00:00]} c5 {[%emt 0:06:30]} 6. dxc5 {[%emt 0:03:00]} Qa5+ {[%emt 0:00:30]} 7. Nc3 {[%emt 0:01:30]} Qxc5 {[%emt 0:07:30]} 8. Be3 {[%emt 0:02:30]} Qa5 {[%emt 0:03:30]} 9. O-O {[%emt 0:01:30]} O-O {[%emt 0:01:30]} 10. a3 {[%emt 0:02:30]} a6 {[%emt 0:05:30]} 11. Qd2 {[%emt 0:05:30]} Nc6 {[%emt 0:04:30]} 12. b4 {[%emt 0:08:30]} Qc7 {[%emt 0:02:30]} 13. Rac1 {[%emt 0:01:30]} b5 {[%emt 0:08:30]} 14. Nd5 {[%emt 0:01:30]} Qb7 {[%emt 0:34:56]} 15. c4 {[%emt 0:02:30]} bxc4 {[%emt 0:01:54]} 16. Nxf6+ {[%emt 0:02:30]} Bxf6 {[%emt 0:06:03]} 17. Bxc4 {[%emt 0:00:30]} Qd7 {[%emt 0:06:47]} 18. b5 {[%emt 0:02:30]} Ne5 {[%emt 0:04:13]} 19. Nxe5 {[%emt 0:00:30]} Bxe5 {[%emt 0:00:30]} 20. Bd5 {[%emt 0:04:30]} Rb8 {[%emt 0:00:47]} 21. f4 {[%emt 0:01:30]} Bg7 {[%emt 0:00:37]} 22. b6 {[%emt 0:01:30]} e6 {[%emt 0:01:23]} 23. Bc6 {[%emt 0:00:30]} Qe7 {[%emt 0:00:16]} 24. e5 {[%emt 0:02:30]} Rd8 {[%emt 0:01:22]} 25. Rfd1 {[%emt 0:00:30]} Bf8 {[%emt 0:00:36]} 26. Bc5 {[%emt 0:02:30]} Bb7 {[%emt 0:00:32]} 27. Bxd6 {[%emt 0:01:30]} Qh4 {[%emt 0:00:28]} 28. Qe3 {[%emt 0:00:30]} Qh5 {[%emt 0:00:32]} 29. g4 {[%emt 0:00:30]} Qh4 {[%emt 0:00:19]} 30. Bxb8 {[%emt 0:08:30]} Rxd1+ {[%emt 0:01:03]} 31. Rxd1 {[%emt 0:00:30]} Bc5 {[%emt 0:00:00]} 32. Qxc5 {[%emt 0:01:30]} Qg3+ {[%emt 0:00:04]} 33. Kf1 {[%emt 0:00:00]} Qxh3+ {[%emt 0:01:02]} 34. Ke1 {[%emt 0:00:00]} Qg3+ 35. Kd2 {[%emt 0:01:30]} Qh2+ {[%emt 0:00:58]} 36. Kc3 {[%emt 0:00:30]} Qg3+ {[%emt 0:00:35]} 37. Kb2 {[%emt 0:00:30]} Qh2+ {[%emt 0:00:26]} 38. Ka1 {[%emt 0:00:30]} Bxc6 {[%emt 0:00:37]} 39. Rd8+ {[%emt 0:00:00]} 1-0